bitfinex/quotes_BTCUSD_20230113
["timestamp","ask_amount","ask_price","bid_price","bid_amount"]
[1673576427572,0.006,18817.0,18816.0,1.25127212]
[1673576427824,0.006,18817.0,18816.0,1.05408412]
[1673576428073,11.35751503,18818.0,18817.0,0.60088784]
[1673576428313,11.36351503,18818.0,18817.0,1.23142494]
[1673576428571,11.35751503,18818.0,18817.0,1.46818759]
[1673576428817,11.35751503,18818.0,18817.0,1.23142494]
[1673576429312,11.41951503,18818.0,18817.0,1.23242494]
[1673576429802,11.35751503,18818.0,18817.0,1.23142494]
[1673576430052,11.35751503,18818.0,18817.0,1.46818759]
[1673576430288,11.35751503,18818.0,18817.0,1.88646461]
[1673576430760,11.37251503,18818.0,18817.0,1.89546461]
[1673576431016,11.35751503,18818.0,18817.0,2.04565097]
[1673576431265,11.35751503,18818.0,18817.0,1.72863051]
[1673576431554,11.37251503,18818.0,18817.0,1.73763051]
[1673576431790,11.37251503,18818.0,18817.0,1.89544351]
[1673576431916,11.37251503,18818.0,18817.0,2.16115351]
[1673576432416,11.37251503,18818.0,18817.0,2.32036097]
[1673576432960,11.37251503,18818.0,18817.0,2.62036097]
[1673576433664,11.37251503,18818.0,18817.0,2.00334051]
[1673576433892,11.37251503,18818.0,18817.0,1.74289389]
[1673576434160,11.37251503,18818.0,18817.0,1.42021124]
[1673576434381,11.37251503,18818.0,18817.0,1.65697389]
[1673576435762,11.37251503,18818.0,18817.0,2.07409081]
[1673576436021,11.37251503,18818.0,18817.0,1.91626041]
[1673576436255,11.37251503,18818.0,18817.0,2.07418304]
[1673576437793,11.37251503,18818.0,18817.0,1.91626041]
[1673576438009,11.37251503,18818.0,18817.0,2.23328087]
[1673576438237,11.37251503,18818.0,18817.0,2.23329087]
[1673576438579,11.37251503,18818.0,18817.0,1.91627041]
[1673576438845,11.37251503,18818.0,18817.0,2.23329087]
[1673576440602,11.37251503,18818.0,18817.0,1.99652822]
[1673576440846,11.37251503,18818.0,18817.0,2.3928038]
[1673576441102,11.37251503,18818.0,18817.0,1.99652822]
[1673576441853,11.37251503,18818.0,18817.0,2.3928038]
[1673576442085,11.37251503,18818.0,18817.0,2.00502822]
[1673576442341,11.37251503,18818.0,18817.0,2.4013038]
[1673576442832,11.37251503,18818.0,18817.0,1.87601944]
[1673576443098,11.37251503,18818.0,18817.0,2.43355079]
[1673576445291,11.37251503,18818.0,18817.0,2.16783079]
[1673576446061,11.37251503,18818.0,18817.0,2.43353079]
[1673576446904,11.37251503,18818.0,18817.0,2.7492634]
[1673576447096,11.37251503,18818.0,18817.0,2.43353079]
[1673576448072,10.32640013,18818.0,18817.0,2.43353079]
[1673576448319,10.32640013,18818.0,18817.0,1.87599944]
[1673576448556,10.32640013,18818.0,18817.0,1.47972386]
[1673576449313,9.07111865,18818.0,18817.0,1.47972386]
[1673576451040,9.07111865,18818.0,18817.0,2.14757332]
[1673576451542,9.07111865,18818.0,18817.0,2.54194099]
[1673576451780,9.07111865,18818.0,18817.0,2.54194465]
[1673576453294,9.07111865,18818.0,18817.0,2.27624465]
[1673576454258,9.07111865,18818.0,18817.0,2.54192465]
[1673576455289,9.07111865,18818.0,18817.0,2.85746404]
[1673576455541,9.07111865,18818.0,18817.0,2.46309271]
[1673576456526,9.07111865,18818.0,18817.0,2.69974938]
[1673576456769,9.07111865,18818.0,18817.0,2.6997602]
[1673576457035,9.07111865,18818.0,18817.0,2.46311271]
[1673576457285,9.07111865,18818.0,18817.0,2.85748404]
[1673576457535,9.07111865,18818.0,18817.0,2.46311271]
[1673576458032,9.07111865,18818.0,18817.0,2.69981974]
[1673576458573,9.07111865,18818.0,18817.0,2.55881974]
[1673576458823,9.07111865,18818.0,18817.0,2.71648404]
[1673576459317,9.07111865,18818.0,18817.0,2.7097801]
[1673576459578,9.07111865,18818.0,18817.0,0.40705798]
[1673576459838,9.07111865,18818.0,18817.0,0.0175]
[1673576460110,9.89062548,18818.0,18817.0,0.0175]
[1673576461370,9.89062548,18818.0,18817.0,0.17535498]
[1673576464815,9.89062548,18818.0,18817.0,0.50554298]
[1673576465853,9.89062548,18818.0,18817.0,0.0175]
[1673576469101,9.89062548,18818.0,18817.0,0.347688]
[1673576470312,9.89062548,18818.0,18817.0,0.0175]
[1673576470561,10.36141348,18818.0,18817.0,0.0175]
[1673576470803,9.68260665,18818.0,18817.0,0.0175]
[1673576471316,9.82360665,18818.0,18817.0,0.009]
[1673576471799,10.09730875,18818.0,18817.0,0.009]
[1673576474052,10.09681579,18818.0,18817.0,0.009]
[1673576475272,10.68892069,18818.0,18817.0,0.009]
[1673576475515,10.69594352,18818.0,18817.0,0.009]
[1673576475758,10.42273438,18818.0,18817.0,0.009]
[1673576476002,9.82360665,18818.0,18817.0,0.009]
[1673576476494,10.49408151,18818.0,18817.0,0.00888823]
[1673576476752,11.65711173,18818.0,18817.0,0.00888823]
[1673576477070,11.72369526,18818.0,18817.0,0.00888823]
[1673576477339,10.58654975,18818.0,18817.0,0.00888823]
[1673576477587,10.42761342,18818.0,18817.0,0.00888823]
[1673576477857,10.41261342,18818.0,18815.0,0.08259137]
[1673576478099,0.2819,18816.0,18815.0,0.08259137]
[1673576479088,0.2819,18816.0,18812.0,0.25785498]
[1673576479341,0.154,18816.0,18815.0,0.008]
[1673576479579,0.295,18816.0,18815.0,0.008]
[1673576480561,0.282,18816.0,18813.0,0.66134005]
[1673576480811,0.141,18815.0,18814.0,0.47426927]
[1673576481062,0.141,18815.0,18812.0,0.25785498]
[1673576481302,0.141,18815.0,18814.0,0.67443864]
[1673576481549,0.141,18815.0,18814.0,1.00462664]
[1673576482027,0.1102,18816.0,18814.0,1.00462664]
[1673576482278,0.74059247,18816.0,18815.0,0.231769]
[1673576482525,0.74059247,18816.0,18813.0,0.1]
[1673576482769,0.013,18815.0,18814.0,0.008]
[1673576483024,0.68524147,18815.0,18814.0,0.016]
[1673576483518,0.68524147,18815.0,18814.0,0.0245]
[1673576484022,0.67224147,18815.0,18814.0,0.0085]
[1673576484988,0.68524147,18815.0,18814.0,0.0165]
[1673576487526,0.87284147,18815.0,18814.0,0.008]
[1673576487779,1.20302947,18815.0,18814.0,0.008]
[1673576488285,1.30302947,18815.0,18814.0,0.008]
[1673576489888,0.97284147,18815.0,18814.0,0.008]
[1673576490135,1.30302947,18815.0,18814.0,0.008]
[1673576492092,0.90449613,18815.0,18814.0,0.008]
[1673576492350,0.99839613,18815.0,18814.0,0.008]
[1673576493206,0.99839613,18815.0,18811.0,0.0124078]
[1673576493207,0.98539613,18815.0,18811.0,0.0124078]
[1673576493467,0.60421806,18814.0,18811.0,0.0124078]
[1673576493694,0.2875,18812.0,18811.0,0.0124078]
[1673576494422,0.2875,18812.0,18811.0,0.0134078]
[1673576494670,0.2875,18812.0,18811.0,0.0124078]
[1673576494671,0.617688,18812.0,18811.0,0.0124078]
[1673576494917,1.47121162,18812.0,18811.0,0.0134078]
[1673576495667,1.04711162,18812.0,18811.0,0.0134078]
[1673576495930,1.72953733,18812.0,18811.0,0.0134078]
[1673576496936,1.04711162,18812.0,18811.0,0.0134078]
[1673576497687,1.62675126,18812.0,18811.0,0.0134078]
[1673576498677,1.35272764,18812.0,18811.0,0.0134078]
[1673576499421,1.35272764,18812.0,18811.0,0.01330942]
[1673576499658,0.73433964,18812.0,18811.0,0.01330942]
[1673576501108,0.1547,18812.0,18811.0,0.0893115]
[1673576501356,0.1547,18812.0,18811.0,0.69929382]
[1673576504142,0.76706669,18812.0,18811.0,0.0893115]
[1673576504404,0.86126669,18812.0,18811.0,0.0893115]
[1673576504648,1.28545469,18812.0,18811.0,0.0893115]
[1673576505626,0.95526669,18812.0,18811.0,0.0893115]
[1673576505875,1.28545469,18812.0,18811.0,0.0893115]
[1673576506128,1.29073239,18812.0,18811.0,0.0893115]
[1673576506366,1.62092039,18812.0,18811.0,0.0893115]
[1673576506607,1.29073239,18812.0,18811.0,0.0893115]
[1673576506849,1.28545469,18812.0,18811.0,0.0893115]
[1673576508365,0.95526669,18812.0,18811.0,0.0893115]
[1673576508624,1.28545469,18812.0,18811.0,0.0893115]
[1673576509117,0.95526669,18812.0,18811.0,0.0893115]
[1673576509597,1.28545469,18812.0,18811.0,0.0893115]
[1673576510894,1.62092039,18812.0,18811.0,0.0893115]
[1673576512319,1.52672039,18812.0,18811.0,0.0893115]
[1673576512616,1.43302039,18812.0,18811.0,0.0893115]
[1673576516508,0.8206537,18812.0,18811.0,0.0893115]
[1673576516748,0.9206537,18812.0,18811.0,0.0893115]
[1673576516979,1.51110046,18812.0,18811.0,0.0893115]
[1673576518474,1.67003679,18812.0,18811.0,0.0893115]
[1673576518715,1.76363679,18812.0,18811.0,0.0893115]
[1673576518952,1.60470046,18812.0,18811.0,0.0893115]
[1673576520663,1.76363679,18812.0,18811.0,0.0893115]
[1673576522384,2.00172383,18812.0,18811.0,0.0893115]
[1673576523664,1.41127707,18812.0,18811.0,0.0893115]
[1673576523890,2.10121477,18812.0,18811.0,0.0893115]
[1673576526307,1.56981374,18812.0,18811.0,0.0893115]
[1673576526543,2.28981238,18812.0,18811.0,0.0893115]
[1673576526820,2.16808747,18812.0,18811.0,0.0893115]
[1673576527059,2.26839052,18812.0,18811.0,0.0893115]
[1673576527547,2.08718935,18812.0,18811.0,0.0893115]
[1673576528073,2.24612652,18812.0,18811.0,0.0893115]
[1673576529025,2.28977874,18812.0,18811.0,0.0893115]
[1673576529206,2.88177785,18812.0,18811.0,0.0893115]
[1673576529438,2.28977874,18812.0,18811.0,0.0893115]
[1673576529688,2.36676714,18812.0,18811.0,0.08919257]
[1673576529899,1.9689304,18812.0,18811.0,0.08919257]
[1673576531186,2.11362928,18812.0,18811.0,0.08919257]
[1673576531395,0.37854567,18810.0,18809.0,0.00490637]
[1673576531624,2.37977305,18810.0,18809.0,0.00490637]
[1673576531862,2.85684771,18810.0,18809.0,0.00490637]
[1673576532346,2.86984771,18810.0,18809.0,0.00590637]
[1673576532830,2.44544771,18810.0,18809.0,0.00590637]
[1673576533336,2.20991782,18810.0,18809.0,0.00490637]
[1673576534058,2.34591782,18810.0,18809.0,0.00490637]
[1673576534371,0.1,18809.0,18808.0,0.00933118]
[1673576534516,1.90781538,18809.0,18808.0,0.00933118]
[1673576535483,2.65374922,18809.0,18808.0,0.00933118]
[1673576535709,2.25610342,18809.0,18808.0,0.00933118]
[1673576535937,2.65375088,18809.0,18808.0,0.00933118]
[1673576536164,2.78875088,18809.0,18808.0,0.00933118]
[1673576536411,2.39110342,18809.0,18808.0,0.00933118]
[1673576536894,2.25610342,18809.0,18808.0,0.00933118]
[1673576537131,2.65254952,18809.0,18808.0,0.00933118]
[1673576537378,2.30543675,18809.0,18808.0,0.00933118]
[1673576537628,2.44043675,18809.0,18808.0,0.00933118]
[1673576537867,2.62337701,18809.0,18808.0,0.00933118]
[1673576538143,3.20172219,18809.0,18808.0,0.00933118]
[1673576538354,2.66517701,18809.0,18808.0,0.00933118]
[1673576538593,2.61280083,18809.0,18808.0,0.00933118]
[1673576538862,1.89334432,18809.0,18808.0,0.00933118]
[1673576539104,1.55879364,18809.0,18808.0,0.00933118]
[1673576539339,1.89334432,18809.0,18808.0,0.00933118]
[1673576539827,1.18434646,18809.0,18808.0,0.00933118]
[1673576540071,1.65489714,18809.0,18808.0,0.00933118]
[1673576540313,1.51889714,18809.0,18808.0,0.00933118]
[1673576540538,1.65389714,18809.0,18808.0,0.00933118]
[1673576541092,1.89234432,18809.0,18808.0,0.00933118]
[1673576541568,1.73338387,18809.0,18808.0,0.00933118]
[1673576541812,2.05132413,18809.0,18808.0,0.00933118]
[1673576542535,1.95712413,18809.0,18808.0,0.00933118]
[1673576544640,1.79814519,18809.0,18808.0,0.00933118]
[1673576547726,1.95712413,18809.0,18808.0,0.00933118]
[1673576548190,2.21677445,18809.0,18808.0,0.00933118]
[1673576548947,1.95712413,18809.0,18808.0,0.00933118]
[1673576550382,1.79819789,18809.0,18808.0,0.00933118]
[1673576550621,1.46364751,18809.0,18808.0,0.00933118]
[1673576551097,1.36364751,18809.0,18808.0,0.00933118]
[1673576551333,1.12520033,18809.0,18808.0,0.00933118]
[1673576551816,0.96618601,18809.0,18808.0,0.00933118]
[1673576552065,0.135,18809.0,18808.0,0.67785788]
[1673576556373,0.565188,18809.0,18808.0,0.00933118]
[1673576556613,1.13158786,18809.0,18808.0,0.00933118]
[1673576558031,1.62515286,18809.0,18808.0,0.00933118]
[1673576558263,1.86360004,18809.0,18808.0,0.00926955]
[1673576559948,2.02252598,18809.0,18808.0,0.00926955]
[1673576562781,1.42917757,18809.0,18808.0,0.00926955]
[1673576563272,1.5879753,18809.0,18808.0,0.00926955]
[1673576563992,1.42920443,18809.0,18808.0,0.00926955]
[1673576565475,1.6879753,18809.0,18808.0,0.00926955]
[1673576566194,2.24050565,18809.0,18808.0,0.00926955]
[1673576566948,2.00205847,18809.0,18808.0,0.00926955]
[1673576567175,2.24085732,18809.0,18808.0,0.00926955]
[1673576567413,2.95187507,18809.0,18808.0,0.00926955]
[1673576567659,2.7338954,18809.0,18808.0,0.00926955]
[1673576569587,2.41595514,18809.0,18808.0,0.00926955]
[1673576570778,2.39995146,18809.0,18808.0,0.00926955]
[1673576571010,0.70408882,18809.0,18808.0,0.00926955]
[1673576571247,0.53316444,18809.0,18808.0,0.00926955]
[1673576572216,0.86335244,18809.0,18808.0,0.00926955]
[1673576573149,0.53316444,18809.0,18808.0,0.00926955]
[1673576573396,0.29426362,18809.0,18808.0,0.00926955]
[1673576573643,0.62445162,18809.0,18808.0,0.00926955]
[1673576574157,0.29426362,18809.0,18808.0,0.00926955]
[1673576574399,0.53316444,18809.0,18808.0,0.00926955]
[1673576574644,0.62445162,18809.0,18808.0,0.00926955]
[1673576575118,0.29426362,18809.0,18808.0,0.00926955]
[1673576576301,0.53316444,18809.0,18808.0,0.00926955]
[1673576577295,0.29426362,18809.0,18808.0,0.00926955]
[1673576577542,0.53316444,18809.0,18808.0,0.00926955]
[1673576579981,0.86335244,18809.0,18808.0,0.00926955]
[1673576580217,1.55477922,18809.0,18808.0,0.00926955]
[1673576580485,1.3955156,18809.0,18808.0,0.00926955]
[1673576580718,1.55480103,18809.0,18808.0,0.00926955]
[1673576581217,1.7140626,18809.0,18808.0,0.00926955]
[1673576581456,1.55480081,18809.0,18808.0,0.00926955]
[1673576581693,1.22461281,18809.0,18808.0,0.00926955]
[1673576582901,1.55480081,18809.0,18808.0,0.00926955]
[1673576583632,1.3955156,18809.0,18808.0,0.00926955]
[1673576584141,1.7140626,18809.0,18808.0,0.00926955]
[1673576584346,1.3955156,18809.0,18808.0,0.00926955]
[1673576584620,1.7140626,18809.0,18808.0,0.00926955]
[1673576585121,1.3955156,18809.0,18808.0,0.00926955]
[1673576585391,1.7140626,18809.0,18808.0,0.00926955]
[1673576586063,1.87278315,18809.0,18808.0,0.00926955]
[1673576586297,2.42631124,18809.0,18808.0,0.00926955]
[1673576586533,1.47516178,18809.0,18808.0,0.00926955]
[1673576586772,1.87278315,18809.0,18808.0,0.00926955]
[1673576587007,2.42633039,18809.0,18808.0,0.00926955]
[1673576587229,2.42633051,18809.0,18808.0,0.00926955]
[1673576587946,1.87278315,18809.0,18808.0,0.00926955]
[1673576588191,2.42634088,18809.0,18808.0,0.00926955]
[1673576588676,1.4163671,18809.0,18808.0,0.00926955]
[1673576588932,2.26293121,18809.0,18808.0,0.00926955]
[1673576589616,1.92838053,18809.0,18808.0,0.00926955]
[1673576591276,2.16892605,18809.0,18808.0,0.00926955]
[1673576591518,1.92838053,18809.0,18808.0,0.00926955]
[1673576592276,2.24703545,18809.0,18808.0,0.00926955]
[1673576593713,1.91684745,18809.0,18808.0,0.00926955]
[1673576593953,2.24703545,18809.0,18808.0,0.00926955]
[1673576594657,1.91684745,18809.0,18808.0,0.00926955]
[1673576594882,2.24703545,18809.0,18808.0,0.00926955]
[1673576595354,1.92838053,18809.0,18808.0,0.00926955]
[1673576596101,1.53075916,18809.0,18808.0,0.00926955]
[1673576596818,1.86530984,18809.0,18808.0,0.00926955]
[1673576597052,1.53075916,18809.0,18808.0,0.00926955]
[1673576597289,1.86530984,18809.0,18808.0,0.00926955]
[1673576597524,1.53075916,18809.0,18808.0,0.00920409]
[1673576598741,1.86530984,18809.0,18808.0,0.00920409]
[1673576598982,1.53075916,18809.0,18808.0,0.00920409]
[1673576600694,1.53075916,18809.0,18808.0,0.00186409]
[1673576600920,1.86530984,18809.0,18808.0,0.00186409]
[1673576601637,1.53075916,18809.0,18808.0,0.00186409]
[1673576603802,1.92916357,18809.0,18808.0,0.00186409]
[1673576604077,2.18392739,18809.0,18808.0,0.00186409]
[1673576604962,1.92916357,18809.0,18808.0,0.00186409]
[1673576607846,1.92915257,18809.0,18808.0,0.00186409]
[1673576608072,1.53075916,18809.0,18808.0,0.00186409]
[1673576608540,1.67215916,18809.0,18808.0,0.00186409]
[1673576609028,2.07055026,18809.0,18808.0,0.00186409]
[1673576610487,1.67215916,18809.0,18808.0,0.00186409]
[1673576611016,1.67215916,18809.0,18808.0,0.00178715]
[1673576612186,2.00670984,18809.0,18808.0,0.00178715]
[1673576612424,1.67215916,18809.0,18808.0,0.00178715]
[1673576613135,2.00670984,18809.0,18808.0,0.00178715]
[1673576617729,2.00659159,18809.0,18808.0,0.00178715]
[1673576618747,1.67204091,18809.0,18808.0,0.00178715]
[1673576618983,1.34185291,18809.0,18808.0,0.00178715]
[1673576619232,1.84031848,18809.0,18808.0,0.00178715]
[1673576619473,2.17050648,18809.0,18808.0,0.00178715]
[1673576623448,1.77204091,18809.0,18808.0,0.00178715]
[1673576623728,1.84042099,18809.0,18808.0,0.00178715]
[1673576623989,2.1592685,18809.0,18808.0,0.00178715]
[1673576624990,1.60571077,18809.0,18808.0,0.00178715]
[1673576625231,2.15272465,18809.0,18808.0,0.00178715]
[1673576625492,1.60571077,18809.0,18808.0,0.00178715]
[1673576625748,2.15272563,18809.0,18808.0,0.00178715]
[1673576626001,1.20714269,18809.0,18808.0,0.00178715]
[1673576626512,2.15272601,18809.0,18808.0,0.00178715]
[1673576626760,1.60571077,18809.0,18808.0,0.00178715]
[1673576627034,0.45372926,18809.0,18808.0,0.9310547]
[1673576627274,0.45372926,18809.0,18808.0,1.19213776]
[1673576627275,0.13488175,18809.0,18808.0,1.19213776]
[1673576628013,0.13488175,18809.0,18808.0,1.29213776]
[1673576628265,0.15939663,18810.0,18808.0,1.29213776]
[1673576628518,0.15939663,18810.0,18809.0,0.331968]
[1673576628775,1.01698438,18811.0,18809.0,0.331968]
[1673576629020,1.01698438,18811.0,18810.0,0.330151]
[1673576629272,1.01698438,18811.0,18808.0,0.86194976]
[1673576629531,1.01698438,18811.0,18808.0,0.72714976]
[1673576629532,0.78209416,18810.0,18808.0,0.72714976]
[1673576629873,0.012,18809.0,18808.0,0.72714976]
[1673576630044,1.12120285,18810.0,18808.0,0.72714976]
[1673576630290,1.12120285,18810.0,18809.0,0.330188]
[1673576630291,1.02120285,18810.0,18809.0,0.330188]
[1673576630780,0.79409416,18810.0,18808.0,0.74114976]
[1673576631024,0.78209416,18810.0,18808.0,0.72714976]
[1673576631258,0.62280091,18810.0,18809.0,0.330188]
[1673576631521,0.78209416,18810.0,18809.0,0.330188]
[1673576631754,0.067,18810.0,18809.0,0.332188]
[1673576631989,0.067,18810.0,18809.0,0.4923929]
[1673576632492,1.1025981,18811.0,18809.0,0.3903929]
[1673576632733,0.005,18810.0,18809.0,0.1602049]
[1673576632972,0.70419616,18811.0,18809.0,0.4903929]
[1673576633209,0.70419616,18811.0,18809.0,0.0622049]
[1673576633210,0.067,18810.0,18809.0,0.0622049]
[1673576633443,0.96348941,18811.0,18809.0,0.0622049]
[1673576633444,0.96348941,18811.0,18809.0,0.0602049]
[1673576633748,0.93048941,18811.0,18809.0,0.1622049]
[1673576633994,0.93028941,18811.0,18810.0,0.330188]
[1673576634242,0.93028941,18811.0,18809.0,0.1622049]
[1673576634490,0.93028941,18811.0,18809.0,0.0622049]
[1673576634746,0.77099616,18811.0,18810.0,0.330188]
[1673576634982,0.87099616,18811.0,18809.0,0.0622049]
[1673576635228,0.77099616,18811.0,18809.0,0.1622049]
[1673576635439,0.77099616,18811.0,18810.0,0.330188]
[1673576635707,0.77099616,18811.0,18809.0,0.1622049]
[1673576635947,0.86328941,18811.0,18809.0,0.0602049]
[1673576636241,0.93799616,18811.0,18810.0,0.002]
[1673576636723,0.59512248,18810.0,18809.0,0.0602049]
[1673576636975,0.59512248,18810.0,18809.0,0.0622049]
[1673576637215,0.59512248,18810.0,18809.0,0.0602049]
[1673576637465,0.59512248,18810.0,18809.0,0.3903929]
[1673576637942,0.59512248,18810.0,18809.0,0.0602049]
[1673576638667,0.59512248,18810.0,18809.0,0.5307929]
[1673576639396,0.66212248,18810.0,18809.0,0.5327929]
[1673576640634,0.66212248,18810.0,18809.0,0.2026049]
[1673576641428,0.66212248,18810.0,18809.0,0.5327929]
[1673576644150,0.66212248,18810.0,18809.0,0.2026049]
[1673576644641,0.92141573,18810.0,18809.0,0.0622049]
[1673576646198,1.82390704,18810.0,18809.0,0.0622049]
[1673576646433,1.82390704,18810.0,18809.0,0.06212421]
[1673576646434,3.13080525,18810.0,18809.0,0.06212421]
[1673576646924,2.97286806,18810.0,18809.0,0.06212421]
[1673576647434,2.37774558,18810.0,18809.0,0.06212421]
[1673576648461,3.08734751,18810.0,18809.0,0.06212421]
[1673576648967,2.37774558,18810.0,18809.0,0.06212421]
[1673576649693,1.96032999,18810.0,18809.0,0.06212421]
[1673576650199,2.21407046,18810.0,18809.0,0.06212421]
[1673576650984,0.03513066,18808.0,18806.0,0.00509762]
[1673576651228,0.330188,18807.0,18806.0,0.00509762]
[1673576651482,0.53295273,18808.0,18806.0,0.00509762]
[1673576651966,0.85103889,18807.0,18806.0,0.00509762]
[1673576652244,0.69191006,18807.0,18806.0,0.00509762]
[1673576652767,0.69191006,18807.0,18806.0,0.01709762]
[1673576653009,0.69191006,18807.0,18806.0,0.00509762]
[1673576653282,0.86703889,18807.0,18806.0,0.01709762]
[1673576653530,0.96703889,18807.0,18806.0,0.01709762]
[1673576654030,0.96709889,18807.0,18806.0,0.01709762]
[1673576654281,0.86709889,18807.0,18806.0,0.01709762]
[1673576655827,1.20058073,18807.0,18806.0,0.01709762]
[1673576656070,1.29728689,18807.0,18806.0,0.01709762]
[1673576656573,0.96709889,18807.0,18806.0,0.01709762]
[1673576657294,1.29728689,18807.0,18806.0,0.01709762]
[1673576658262,0.96709889,18807.0,18806.0,0.01709762]
[1673576658777,1.29728689,18807.0,18806.0,0.01709762]
[1673576659540,0.96709889,18807.0,18806.0,0.01709762]
[1673576659790,1.29728689,18807.0,18806.0,0.01709762]
[1673576660061,0.96709889,18807.0,18806.0,0.01709762]
[1673576660310,1.30058073,18807.0,18806.0,0.01709762]
[1673576660539,1.63076873,18807.0,18806.0,0.01709762]
[1673576660798,1.63076873,18807.0,18806.0,0.012]
[1673576662725,1.28128689,18807.0,18805.0,0.01240726]
[1673576662982,1.29658073,18807.0,18806.0,0.011]
[1673576663220,0.95109889,18807.0,18805.0,0.01240726]
[1673576663474,1.41858073,18807.0,18806.0,0.001]
[1673576663722,1.08509889,18807.0,18806.0,0.001]
[1673576664008,1.41528689,18807.0,18806.0,0.001]
[1673576664241,1.74876873,18807.0,18806.0,0.000783]
[1673576664487,1.15615806,18807.0,18806.0,0.000783]
[1673576664757,0.82597006,18807.0,18806.0,0.000783]
[1673576664994,0.82591006,18807.0,18806.0,0.000783]
[1673576665234,0.92591006,18807.0,18806.0,0.000783]
[1673576665473,0.129217,18806.0,18805.0,0.56954707]
[1673576665720,0.029217,18806.0,18805.0,0.56954707]
[1673576666692,0.097217,18806.0,18805.0,0.57154707]
[1673576667206,0.097217,18806.0,18805.0,0.90173507]
[1673576667431,0.097217,18806.0,18805.0,1.02108398]
[1673576667716,0.097217,18806.0,18805.0,1.22261352]
[1673576668203,0.097217,18806.0,18805.0,1.23111352]
[1673576668478,0.097217,18806.0,18805.0,1.13111352]
[1673576668700,0.097217,18806.0,18805.0,0.98971352]
[1673576669933,0.097277,18806.0,18805.0,0.98971352]
[1673576672891,0.097277,18806.0,18805.0,1.08971352]
[1673576673859,0.097277,18806.0,18805.0,0.75952552]
[1673576674392,0.097277,18806.0,18805.0,0.65952552]
[1673576675133,0.097217,18806.0,18805.0,0.65952552]
[1673576676369,0.097217,18806.0,18805.0,0.98971352]
[1673576677251,0.097217,18806.0,18805.0,1.08971352]
[1673576678294,0.097217,18806.0,18805.0,0.98971352]
[1673576678534,0.097217,18806.0,18805.0,0.65952552]
[1673576679631,0.097217,18806.0,18805.0,1.08971352]
[1673576682436,0.097217,18806.0,18805.0,0.65952552]
[1673576682817,0.097217,18806.0,18805.0,0.98971352]
[1673576683480,0.097217,18806.0,18805.0,0.65952552]
[1673576684053,0.097217,18806.0,18805.0,0.98971352]
[1673576684283,0.097217,18806.0,18805.0,0.65952552]
[1673576684521,0.097217,18806.0,18805.0,1.31639828]
[1673576684766,0.097217,18806.0,18805.0,1.0181433]
[1673576685500,0.029217,18806.0,18805.0,1.0161433]
[1673576685739,0.033217,18806.0,18805.0,1.0241433]
[1673576687147,0.033217,18806.0,18805.0,0.40238726]
[1673576687419,0.033217,18806.0,18805.0,0.17030726]
[1673576687672,0.004,18806.0,18805.0,0.14109026]
[1673576689401,0.16312883,18806.0,18805.0,0.14109026]
[1673576689635,0.79177607,18806.0,18805.0,0.008]
[1673576690658,1.03046931,18806.0,18805.0,0.008]
[1673576691128,0.79177607,18806.0,18805.0,0.008]
[1673576692438,1.03046931,18806.0,18805.0,0.008]
[1673576693012,0.79177607,18806.0,18805.0,0.008]
[1673576694241,1.12196407,18806.0,18805.0,0.008]
[1673576694454,1.36065731,18806.0,18805.0,0.008]
[1673576694702,1.12196407,18806.0,18805.0,0.008]
[1673576695201,1.36065731,18806.0,18805.0,0.008]
[1673576696667,1.03046931,18806.0,18805.0,0.008]
[1673576697403,1.36065731,18806.0,18805.0,0.008]
[1673576698189,1.03046931,18806.0,18805.0,0.008]
[1673576698935,0.79177607,18806.0,18805.0,0.008]
[1673576700418,1.12196407,18806.0,18805.0,0.008]
[1673576700918,0.79177607,18806.0,18805.0,0.008]
[1673576701161,1.12196407,18806.0,18805.0,0.008]
[1673576701409,0.79177607,18806.0,18805.0,0.008]
[1673576702697,1.12196407,18806.0,18805.0,0.008]
[1673576702958,1.36065731,18806.0,18805.0,0.008]
[1673576703706,1.03046931,18806.0,18805.0,0.008]
[1673576703954,0.79177607,18806.0,18805.0,0.008]
[1673576704709,1.03046931,18806.0,18805.0,0.008]
[1673576704952,1.36065731,18806.0,18805.0,0.008]
[1673576705202,0.79177607,18806.0,18805.0,0.008]
[1673576705732,0.79177607,18806.0,18805.0,0.66172194]
[1673576705979,0.16312883,18806.0,18805.0,0.56172194]
[1673576706234,0.004,18806.0,18805.0,0.56172194]
[1673576706488,0.004,18806.0,18805.0,0.71957692]
[1673576706743,0.004,18806.0,18805.0,1.04976492]
[1673576707031,0.004,18806.0,18805.0,1.14976492]
[1673576708045,0.004,18806.0,18805.0,0.66172194]
[1673576708285,0.004,18806.0,18805.0,1.14976492]
[1673576708532,0.00226768,18806.0,18805.0,1.14976492]
[1673576709514,0.00226768,18806.0,18805.0,0.81957692]
[1673576709765,0.00226768,18806.0,18805.0,1.14976492]
[1673576712010,0.00226768,18806.0,18805.0,0.99190994]
[1673576713488,9.05838692,18806.0,18805.0,0.89190994]
[1673576713734,9.05838692,18806.0,18805.0,0.56172194]
[1673576714891,9.05838692,18806.0,18805.0,0.008]
[1673576715727,9.05838692,18806.0,18805.0,0.00814727]
[1673576715937,9.05838692,18806.0,18805.0,0.008]
[1673576717498,9.05838692,18806.0,18805.0,0.16585498]
[1673576717718,9.05838692,18806.0,18805.0,0.008]
[1673576719929,9.05838692,18806.0,18805.0,0.16585498]
[1673576720185,9.05838692,18806.0,18805.0,0.008]
[1673576720662,9.05838692,18806.0,18805.0,0.16585498]
[1673576720929,9.05838692,18806.0,18805.0,0.008]
[1673576721184,9.05838692,18806.0,18805.0,0.16585498]
[1673576721415,9.05838692,18806.0,18805.0,0.008]
[1673576723585,9.05838692,18806.0,18805.0,0.72990155]
[1673576723827,9.05838692,18806.0,18805.0,1.12453901]
[1673576724082,9.05838692,18806.0,18805.0,1.36617799]
[1673576724321,9.05838692,18806.0,18805.0,1.12453901]
[1673576724635,9.05838692,18806.0,18805.0,1.3661789]
[1673576724875,9.05838692,18806.0,18805.0,1.12453901]
[1673576725618,9.05838692,18806.0,18805.0,0.76526653]
[1673576726575,9.05838692,18806.0,18805.0,1.00204901]
[1673576726814,9.05838692,18806.0,18805.0,0.76526653]
[1673576727066,9.05838692,18806.0,18805.0,1.00204901]
[1673576727312,9.05838692,18806.0,18805.0,0.76526653]
[1673576728018,9.05838692,18806.0,18805.0,1.00204901]
[1673576728287,9.05838692,18806.0,18805.0,0.76526653]
[1673576728504,9.05838692,18806.0,18805.0,1.00204901]
[1673576728975,9.05838692,18806.0,18805.0,0.76526653]
[1673576733172,9.05831849,18806.0,18805.0,1.24412386]
[1673576733390,9.05831849,18806.0,18805.0,1.34412386]
[1673576733627,9.05831849,18806.0,18805.0,1.00204901]
[1673576734318,9.05831849,18806.0,18805.0,0.76526653]
[1673576735977,9.05831849,18806.0,18805.0,0.82078233]